Workbook

Sheet 1. Forside
A1: Ringkøbing-Skjern Spildevand A/S
D8: Bilag A
D13: Indholdsfortegnelse
C16: Fane nr. 2 | D16: Samlet prisloft
C17: Fane nr. 3 | D17: Driftsomkostninger
C18: Fane nr. 4 | D18: Historiske investeringer
C19: Fane nr. 5 | D19: Gennemførte investeringer
C20: Fane nr. 6 | D20: Korrektion investeringer
C21: Fane nr. 7 | D21: Planlagte investeringer
C22: Fane nr. 8 | D22: 1:1 omkostninger
C23: Fane nr. 9 | D23: Miljø- og servicemål
C24: Fane nr. 10 | D24: Klimatilpasning
C25: Fane nr. 11 | D25: Nettofinansielle poster
C26: Fane nr. 12 | D26: Over- eller underdækning
C27: Fane nr. 13 | D27: Kontrol med indtægtsrammen og oversigt over ekstraordinære effektiviseringsgevinster

Sheet 2. Samlet prisloft
A1: ='1. Forside'!A1 -> Ringkøbing-Skjern Spildevand A/S
B4: Fane 2. Samlet prisloft for 2015
B6: Driftsomkostninger
B7: Driftsomkostninger i prisloftet for 2014 | C7: ='3. Driftsomkostninger'!C20 -> 13937629.29 | D7: kr.
B8: Bortfald af væsentlige omkostninger | C8: =-'3. Driftsomkostninger'!C16 -> 0 | D8: kr.
B9: Korrektion for prisudviklingen 2014-2015 | C9: ='3. Driftsomkostninger'!C22 -> 11150.10344 | D9: kr.
B10: Forhøjelse til effektivt niveau iht. benchmarkingen | C10: ='3. Driftsomkostninger'!C28 -> 0 | D10: kr.
B11: Korrektion for generelt effektiviseringskrav | C11: =-'3. Driftsomkostninger'!C34 -> -61325.5689 | D11: kr.
B12: Korrektion for individuelt effektiviseringskrav | C12: =-'3. Driftsomkostninger'!C43 -> -160979.5 | D12: kr.
B13: Driftsomkostninger i alt | C13: =SUM(C7:C12) -> 13726474.33 | D13: kr. | E13: =C13 -> 13726474.33 | F13: kr.
B14: Investeringer
B15: Tillæg for historiske investeringer | C15: ='4. Historiske investeringer'!C9 -> 47474343.77 | D15: kr.
B16: Tillæg for gennemførte investeringer i 2011-2013 | C16: ='5. Gennemførte investeringer'!F33 -> 3708159.024 | D16: kr.
B17: Korrektion af tillæg for planlagte investeringer vedrørende 2013 | C17: ='6. Korrektion investeringer'!C10 -> 136617.8467 | D17: kr.
B18: Tillæg for planlagte investeringer i 2014 og 2015 | C18: ='7. Planlagte investeringer'!F34 -> 2172956.333 | D18: kr.
B19: Investeringstillæg i alt | C19: =SUM(C15:C18) -> 53492076.98 | D19: kr. | E19: =C19 -> 53492076.98 | F19: kr.
B20: Øvrige omkostninger mv.
B21: Tillæg for 1:1 omkostninger i 2015 | C21: ='8. 1-1 omkostninger'!C11 -> 64571 | D21: kr.
B22: Tillæg vedr. revisorerklæringer og DANVA/FVD-kontingent | C22: ='8. 1-1 omkostninger'!C19 -> 79000 | D22: kr.
B23: Korrektion ift. faktiske 1:1 omkostninger i 2013 | C23: ='8. 1-1 omkostninger'!C25 -> -1595284 | D23: kr.
B24: Tillæg for driftsomkostninger til miljø- og servicemål i 2015 | C24: ='9. Miljø- og servicemål'!C8 -> 75000 | D24: kr.
B25: Korrektion ift. faktiske driftsomkostninger til miljø- og servicemål i 2013 | C25: ='9. Miljø- og servicemål'!C15 -> 44016 | D25: kr.
B26: Tillæg for driftsomkostninger til medfinansiering af klimatilpasningsprojekter i 2015 | C26: ='10. Klimatilpasning'!C9 -> 0 | D26: kr.
B27: Korrektion ift. faktiske omkostninger til medfinansiering af klimatilpasningsprojekter i 2013 | C27: ='10. Klimatilpasning'!C16 -> 0 | D27: kr.
B28: Tillæg/fradrag for nettofinansielle poster i 2015 | C28: ='11. Nettofinansielle poster'!C9 -> 606000 | D28: kr.
B29: Korrektion ift. faktiske nettofinansielle poster i 2013 | C29: ='11. Nettofinansielle poster'!C16 -> -642999 | D29: kr.
B30: Øvrige omkostninger mv. i alt | C30: =SUM(C21:C29) -> -1369696 | D30: kr. | E30: =C30 -> -1369696 | F30: kr.
B31: Historisk over- eller underdækning
B32: Tillæg/fradrag for over- eller underdækning til og med 2010 | C32: ='12. Over- eller underdækning'!C11 -> 0 | D32: kr. | E32: =C32 -> 0 | F32: kr.
B33: Korrektion i forhold til tidligere indtægtsramme
B34: Korrektion for overholdelse af indtægtsramme i prisloft 2013 | C34: ='13. Kontrol med indtægtsrammen'!E27 -> -3059609.5 | D34: kr. | E34: =C34 -> -3059609.5 | F34: kr.
B35: Samlet prisloft
B36: Indtægtsramme i 2015 | E36: =SUM(E13:E34) -> 62789245.81 | F36: kr.
B37: Debiteret vandmængde i 2013 | E37: 2257988 | F37: m3
B38: Prisloft 2015 | E38: =E36/E37 -> 27.80760828 | F38: kr./m3

Sheet 3. Driftsomkostninger
A1: ='1. Forside'!A1 -> Ringkøbing-Skjern Spildevand A/S
B4: Fane 3. Driftsomkostninger
B6: Driftsomkostningerne i prisloftet for 2014
B7: Korrigerede driftsomkostninger i prisloftet for 2013 (DOiPL 2013) | C7: 13937753 | D7: kr.
B8: Prisfremskrivning 1,5 pct. | C8: =0.015*SUM(C7:C7) -> 209066.295 | D8: kr.
B9: Generelt effektiviseringskrav (0 pct.) | C9: 0 | D9: kr.
B10: Individuelt effektiviseringskrav | C10: -209190 | D10: kr.
B11: Driftsomkostningerne i prisloftet for 2014 (DOiPL 2014) | C11: =SUM(C7:C10) -> 13937629.29 | D11: kr.
B14: Korrektion for forventet bortfald af væsentlige omkostninger
B15: Selskabets indberettede bortfald af væsentlige omkostninger inden 2015 | C15: 0 | D15: kr.
B16: Korrektion for forventet bortfald | C16: =SUM(C15:C15) -> 0 | D16: kr.
B19: Korrektion for prisudviklingen fra 2014-2015
B20: Driftsomkostningerne i prisloftet for 2014 | C20: =C11-C16 -> 13937629.29 | D20: kr.
B21: Prisudvikling 2014 - 2015 | C21: 0.08 | D21: pct.
B22: Korrektion for prisudvikling | C22: =C20*(C21/100) -> 11150.10344 | D22: kr.
B25: Eventuel forhøjelse til effektivt niveau iht. benchmarkingen
B26: Selskabets effektive driftsomkostninger iht. benchmarkingen | C26: 11448369 | D26: kr.
B27: Selskabets pristalskorrigerede driftsomkostninger i 2015-niveau | C27: =C20+C22 -> 13948779.4 | D27: kr.
B28: Eventuel forhøjelse til effektivt niveau | C28: =IF(C27>C26,0,C26-C27) -> 0 | D28: kr.
B31: Korrektion for generelt effektiviseringskrav
B32: Driftsomkostningerne i prisloftet for 2014 | C32: =C20 -> 13937629.29 | D32: kr.
B33: Generelt effektiviseringskrav | C33: 0.44 | D33: pct.
B34: Endeligt generelt effektiviseringskrav | C34: =C32*(C33/100) -> 61325.5689 | D34: kr.
B37: Korrektion for individuelt effektiviseringskrav
B38: Rå effektiviseringspotentiale | C38: 2705294 | D38: kr.
B39: Effektiviseringspotentiale efter eventuel korrektion for særlige forhold | C39: 2489261 | D39: kr.
B40: Effektiviseringspotentiale efter forsigtighedshensyn | C40: 643918 | D40: kr.
B41: Effektiviseringspotentiale efter eventuel korrektion for sammensætning af signifikante costdrivere | C41: 643918 | D41: kr.
B42: Umiddelbart effektiviseringskrav | C42: =C41/4 -> 160979.5 | D42: kr.
B43: Endeligt individuelt effektiviseringskrav | C43: =IF(C42>0.05*C20,0.05*C20,IF(C42<0.01*C20,0,C42)) -> 160979.5 | D43: kr.

Sheet 4. Historiske investeringer
A1: ='3. Driftsomkostninger'!A1 -> Ringkøbing-Skjern Spildevand A/S
B4: Fane 4. Historiske investeringer
B6: Tillæg for historiske investeringer
B7: Værdi af selskabets materielle anlægsaktiver pr. 1. januar 2010 | C7: 2343264179 | D7: kr.
B8: Den årlige standardafskrivning på de materielle anlægsaktiver iht. POLKA | C8: 47474343.77 | D8: kr.
B9: Tillæg i alt i 2015 | C9: =C8 -> 47474343.77 | D9: kr.

Sheet 5. Gennemførte investeringer
A1: ='4. Historiske investeringer'!A1 -> Ringkøbing-Skjern Spildevand A/S
B4: Fane 5. Gennemførte investeringer i 2010 - 2013
B6: Tillæg for gennemførte investeringer i 2013
B7: Beskrivelse af investeringen | C7: Årstal | D7: Std. levetid (år) | E7: Anskaffelses-pris (kr.) | F7: Afskrivning
B8: Brønde | C8: 2013 | D8: 75 | E8: 3387752 | F8: 45170.02667 | G8: kr.
B9: Stik | C9: 2013 | D9: 75 | E9: 3557792 | F9: 47437.22667 | G9: kr.
B10: Forsinkelsesbassinner, lukkede uden automatisk rensning og SRO miljøklasse B (mindre end 1.000 m3) | C10: 2013 | D10: 50 | E10: 2691222 | F10: 53824.44 | G10: kr.
B11: Værksteder, garager | C11: 2013 | D11: 75 | E11: 402754 | F11: 5370.053333 | G11: kr.
B12: Jordbassin Klasse B | C12: 2013 | D12: 50 | E12: 103727 | F12: 2074.54 | G12: kr.
B13: Ledningsnet = Ø 200mm | C13: 2013 | D13: 75 | E13: 3643422 | F13: 48578.96 | G13: kr.
B14: Strømpeforing Ø200 mm < Ledningsnet = Ø 500 mm | C14: 2013 | D14: 50 | E14: 662869 | F14: 13257.38 | G14: kr.
B15: Ø 200 mm < Ledningsnet = Ø 500 mm | C15: 2013 | D15: 75 | E15: 9981181 | F15: 133082.4133 | G15: kr.
B16: Ø 500 mm < Ledningsnet = Ø 800 mm | C16: 2013 | D16: 75 | E16: 146402 | F16: 1952.026667 | G16: kr.
B17: Imstallationer "ingen eller faste riste" (mindre end 7 m2) | C17: 2013 | D17: 20 | E17: 53673 | F17: 2683.65 | G17: kr.
B18: Pumpestationer i brønde (<6,25 m2), Konstruktioner | C18: 2013 | D18: 50 | E18: 2088791 | F18: 41775.82 | G18: kr.
B19: Pumpestationer i brønde (<6,25 m2), Mek/EL | C19: 2013 | D19: 20 | E19: 595079 | F19: 29753.95 | G19: kr.
B20: Pumpestationer i brønde (<6,25 m2), SRO | C20: 2013 | D20: 10 | E20: 136780 | F20: 13678 | G20: kr.
B21: Pumpestationer i underjordiske bygværker (<50 m2), Konstruktioner | C21: 2013 | D21: 50 | E21: 2641387 | F21: 52827.74 | G21: kr.
B22: Pumpestationer i underjordiske bygværker (<50 m2), Mek/El | C22: 2013 | D22: 20 | E22: 528277 | F22: 26413.85 | G22: kr.
B23: Pumpestationer i underjordiske bygværker (<50 m2), SRO | C23: 2013 | D23: 10 | E23: 132069 | F23: 13206.9 | G23: kr.
B24: Tryksatte minipumpestationer (husstandssystemer) | C24: 2013 | D24: 30 | E24: 1098237 | F24: 36607.9 | G24: kr.
B25: Andre bygninger (tekniske installationer, målere mv) | C25: 2013 | D25: 75 | E25: 39820 | F25: 530.9333333 | G25: kr.
B26: Jordbassin Klasse B | C26: 2013 | D26: 50 | E26: 870325 | F26: 17406.5 | G26: kr.
B27: Indløb-/udløbsarrangement | C27: 2013 | D27: 75 | E27: 31581 | F27: 421.08 | G27: kr.
B28: Pumpeinstallation Miljøklasse A (100-300 l/s) - Mek/EL | C28: 2013 | D28: 20 | E28: 253218 | F28: 12660.9 | G28: kr.
B29: Øvrig infrastruktur (fiber) - indberettet på mail | C29: 2013 | D29: 30 | E29: 589220.5 | F29: 19640.68333 | G29: kr.
B30: Fælles funktionsanlæg (arbejdsplads) | C30: 2013 | D30: 5 | E30: 1403963.5 | F30: 280792.7 | G30: kr.
B31: Tillæg for 2013 | F31: =SUM(F8:F30) -> 899147.6733 | G31: kr.
B32: Tillæg for 2010 - 2012 | F32: 2809011.351 | G32: kr.
B33: Samlet tillæg for gennemførte investeringer | F33: =F31+F32 -> 3708159.024 | G33: kr.

Sheet 6. Korrektion investeringer
A1: ='5. Gennemførte investeringer'!A1 -> Ringkøbing-Skjern Spildevand A/S
B4: Fane 6. Korrektion af tillæg for planlagte investeringer
B6: Korrektion af tillæg for planlagte investeringer vedr. 2013
B7: Tillæg for planlagte investeringer i 2013 i prisloft 2013 | C7: 681536 | D7: kr.
B8: Tillæg for planlagte investeringer i 2013 i prisloft 2014 | C8: 980141.5 | D8: kr.
B9: Selskabets faktiske afskrivninger på gennemførte investeringer i 2013 | C9: ='5. Gennemførte investeringer'!F31 -> 899147.6733 | D9: kr.
B10: Korrektion af tillæg for planlagte investeringer vedr. 2013 | C10: =C9-C7+C9-C8 -> 136617.8467 | D10: kr.

Sheet 7. Planlagte investeringer
A1: ='6. Korrektion investeringer'!A1 -> Ringkøbing-Skjern Spildevand A/S
B4: Fane 7. Planlagte investeringer
B6: Tillæg for planlagte investeringer i 2014 og 2015
B7: Beskrivelse af investeringen | C7: Årstal | D7: Std. levetid (år) | E7: Anskaffelses-pris (kr.) | F7: Afskrivning
B8: Arbejdsplads | C8: 2014 | D8: 5 | E8: 391550 | F8: 78310 | G8: kr.
B9: Pumpestationer i brønde (< 6,25 m2), SRO | C9: 2014 | D9: 10 | E9: 3383400 | F9: 338340 | G9: kr.
B10: Pumpestationer i brønde (< 6,25 m2), Mek/EL | C10: 2014 | D10: 20 | E10: 908100 | F10: 45405 | G10: kr.
B11: Tryksatte minipumpestationer (husstandssystemer) | C11: 2014 | D11: 30 | E11: 1500000 | F11: 50000 | G11: kr.
B12: Jordbassin Klasse B | C12: 2014 | D12: 50 | E12: 232800 | F12: 4656 | G12: kr.
B13: Pumpestationer i brønde (< 6,25 m2), Konstruktioner | C13: 2014 | D13: 50 | E13: 4177000 | F13: 83540 | G13: kr.
B14: Administrationbygninger | C14: 2014 | D14: 75 | E14: 16699000 | F14: 222653.3333 | G14: kr.
B15: Ledningsnet = Ø 200 mm | C15: 2014 | D15: 75 | E15: 7814200 | F15: 104189.3333 | G15: kr.
B16: Ø 200 mm < Ledningsnet = Ø 500 mm | C16: 2014 | D16: 75 | E16: 11852200 | F16: 158029.3333 | G16: kr.
B17: Brønde | C17: 2014 | D17: 75 | E17: 2000000 | F17: 26666.66667 | G17: kr.
B18: Stik | C18: 2014 | D18: 75 | E18: 2000000 | F18: 26666.66667 | G18: kr.
B19: Fibernet | C19: 2014 | D19: 30 | E19: 605000 | F19: 20166.66667 | G19: kr.
B20: Ledningsnet = Ø 200 mm | C20: 2015 | D20: 75 | E20: 1800000 | F20: 24000 | G20: kr.
B21: Ø 200 mm < Ledningsnet = Ø 500 mm | C21: 2015 | D21: 75 | E21: 25500000 | F21: 340000 | G21: kr.
B22: Brønde | C22: 2015 | D22: 75 | E22: 1500000 | F22: 20000 | G22: kr.
B23: Stik | C23: 2015 | D23: 75 | E23: 1500000 | F23: 20000 | G23: kr.
B24: Pumpestationer i brønde (< 6,25 m2), Konstruktioner | C24: 2015 | D24: 50 | E24: 3000000 | F24: 60000 | G24: kr.
B25: Jordbassin Klasse B | C25: 2015 | D25: 50 | E25: 3850000 | F25: 77000 | G25: kr.
B26: Tryksatte minipumpestationer (husstandssystemer) | C26: 2015 | D26: 30 | E26: 900000 | F26: 30000 | G26: kr.
B27: Pumpestationer i brønde (< 6,25 m2), Mek/EL | C27: 2015 | D27: 20 | E27: 1100000 | F27: 55000 | G27: kr.
B28: Pumpestationer i brønde (< 6,25 m2), SRO | C28: 2015 | D28: 10 | E28: 950000 | F28: 95000 | G28: kr.
B29: Arbejdsplads | C29: 2015 | D29: 5 | E29: 800000 | F29: 160000 | G29: kr.
B30: Administrationbygninger | C30: 2015 | D30: 75 | E30: 7750000 | F30: 103333.3333 | G30: kr.
B31: Fibernet | C31: 2015 | D31: 30 | E31: 900000 | F31: 30000 | G31: kr.
B32: Tillæg for 2014 | F32: =SUMIF(C8:C31,"2014",F8:F31) -> 1158623 | G32: kr.
B33: Tillæg for 2015 | F33: =SUMIF(C8:C31,"2015",F8:F31) -> 1014333.333 | G33: kr.
B34: Tillæg i alt | F34: =F32+F33 -> 2172956.333 | G34: kr.

Sheet 8. 1-1 omkostninger
A1: ='7. Planlagte investeringer'!A1 -> Ringkøbing-Skjern Spildevand A/S
B4: Fane 8. 1:1 omkostninger
B6: Tillæg for budgetterede 1:1 omkostninger i 2015
B7: Betaling til Forsyningssekretariatet | D7: kr.
B8: Spildevandsafgift | D8: kr.
B9: Køb af varer og tjenesteydelser hos et andet prisloftreguleret vandselskab | D9: kr.
B10: Ejendomsskatter | D10: kr.
B11: Tillæg i alt | C11: 64571 | D11: kr.
B16: Tillæg for budgetterede nødvendige udgifter til revisorerklæringer samt ordinært medlemskab af DANVA og FVD i 2015
B17: Betaling for ordinært medlemskab af DANVA/FVD | D17: kr.
B18: Betaling for revisorerklæringer | D18: kr.
B19: Tillæg i alt | C19: 79000 | D19: kr.
B22: Korrektion af tillæg for faktiske 1:1 omkostninger (inkl. revisorerklæringer og ordinært medlemskab af DANVA/FVD) i 2013
B23: Selskabets faktiske 1:1 omkostninger mv. i 2013, jf. reguleringsregnskabet | C23: -243284 | D23: kr.
B24: Tillæg for budgetterede 1:1 omkostninger mv. i prisloft 2013 | C24: 1352000 | D24: kr.
B25: Korrektion af tillæg for budgetterede 1:1 omkostninger mv. i 2013 | C25: =C23-C24 -> -1595284 | D25: kr.

Sheet 9. Miljø- og servicemål
A1: ='8. 1-1 omkostninger'!A1 -> Ringkøbing-Skjern Spildevand A/S
B4: Fane 9. Driftsomkostninger til miljø- og servicemål
B6: Tillæg for budgetterede driftsomkostninger til miljø- og servicemål i 2015
B7: Ledelsessystem og SMS-service | C7: 75000 | D7: kr.
B8: Tillæg i alt | C8: =SUM(C7:C7) -> 75000 | D8: kr.
B12: Korrektion af tillæg for faktiske driftsomkostninger til miljø- og servicemål i 2013
B13: Selskabets faktiske driftsomkostninger til miljø- og servicemål i 2013, jf. reguleringsregnskabet | C13: 144016 | D13: kr.
B14: Tillæg for budgetterede driftsomkostninger til miljø- og servicemål i prisloft 2013 | C14: 100000 | D14: kr.
B15: Korrektion af tillæg for budgetterede driftsomkostninger til miljø- og servicemål i 2013 | C15: =C13-C14 -> 44016 | D15: kr.

Sheet 10. Klimatilpasning
A1: ='9. Miljø- og servicemål'!A1 -> Ringkøbing-Skjern Spildevand A/S
B4: Fane 10. Medfinansiering af klimatilpasningsprojekter
B7: Tillæg for budgetterede omkostninger til medfinansiering af klimatilpasningsprojekter i 2015
C8: 0 | D8: kr.
B9: Tillæg i alt | C9: =SUM(C8:C8) -> 0 | D9: kr.
B13: Korrektion af tillæg for faktiske omkostninger til medfinansiering af klimatilpasningsprojekter i 2013
B14: Selskabets faktiske driftsomkostninger til klimatilpasningsprojekter i 2013, jf. reguleringsregnskabet | C14: 0 | D14: kr.
B15: Tillæg for budgetterede driftsomkostninger til klimatilpasningsprojekter i prisloft 2013 | C15: 0 | D15: kr.
B16: Korrektion af tillæg for budgetterede omkostninger til klimatilpasningsprojekter i 2013 | C16: =C14-C15 -> 0 | D16: kr.

Sheet 11. Nettofinansielle poster
A1: ='10. Klimatilpasning'!A1 -> Ringkøbing-Skjern Spildevand A/S
B4: Fane 11. Nettofinansielle poster
B6: Tillæg for budgetterede nettofinansielle poster i 2015
B7: Budgetterede renteudgifter og gebyrer i 2015 | D7: kr.
B8: Budgetterede renteindtægter i 2015 | D8: kr.
B9: Tillæg/fradrag i alt | C9: 606000 | D9: kr.
B13: Korrektion af tillæg for faktiske nettofinansielle poster i 2013
B14: Selskabets faktiske nettofinansielle poster i 2013, jf. reguleringsregnskabet | C14: 190301 | D14: kr.
B15: Tillæg for budgetterede nettofinansielle poster i prisloft 2013 | C15: 833300 | D15: kr.
B16: Korrektion af tillæg for budgetterede nettofinansielle poster i 2013 | C16: =C14-C15 -> -642999 | D16: kr.

Sheet 12. Over- eller underdækning
A1: ='11. Nettofinansielle poster'!A1 -> Ringkøbing-Skjern Spildevand A/S
B4: Fane 12. Over- eller underdækning til og med 2010
B6: Tillæg/fradrag for over- eller underdækning til og med 2010
B7: Opgjort over- eller underdækning per 31. december 2010 | C7: 0 | D7: kr.
B8: Heraf beløb indregnet i prislofterne for 2012 - 2014 | C8: 0 | D8: kr.
B9: Endnu ikke indregnet over- eller underdækning | C9: =C7-C8 -> 0 | D9: kr.
B10: Resterende indregningsperiode (fastsat i prisloftet for 2012) | C10: 0 | D10: år
B11: Tillæg/fradrag i alt | C11: =IF(C7=0,0,C9/C10) -> 0 | D11: kr.

Sheet 13. Kontrol med indtægtsrammen
A1: ='12. Over- eller underdækning'!A1 -> Ringkøbing-Skjern Spildevand A/S
B4: Fane 13. Korrektion for overholdelse af indtægtsrammen i prisloftet for 2013
B6: Samlet opgørelse vedrørende overholdelse af indtægtsrammen i prisloftet for 2013
B7: Indtægtsramme i prisloftet for 2013 | E7: 117641333 | F7: kr.
B8: Ikke anvendt likviditet vedrørende investeringer i 2013
B9: Tillæg for historiske investeringer | D9: kr.
B10: Tillæg for gennemførte investeringer i 2011 | D10: kr.
B11: Korrektion af tillæg for planlagte investeringer i 2011 | D11: kr.
B12: Tillæg for planlagte investeringer i 2012 og 2013 | D12: kr.
B13: Indtægter fra tilslutningsbidrag | D13: kr.
B14: Indtægter fra salg af anlægsaktiver | D14: kr.
B15: Erstatninger vedr. anlægsaktiver mv. | D15: kr.
B16: Ekstraordinær effektiviseringsgevinst anvendt til investeringer | D16: kr.
B17: Udgifter til investeringer | D17: kr.
B18: Ikke anvendt likviditet vedr. investeringer i alt | C18: =SUM(C9:C17) -> 0 | D18: kr. | E18: =IF(C18<0,0,-C18) -> 0 | F18: kr.
B19: Ekstraordinære effektiviseringsgevinster anvendt til takstnedsættelse
B20: Ekstraordinær effektiviseringsgevinst anvendt til takstnedsættelse | C20: 0 | D20: kr. | E20: =-C20 -> 0 | F20: kr.
B21: Korrektion af ikke opkrævet tillæg fra 2011 i prisloft 2013
B22: Korrektion af ikke opkrævet tillæg fra 2011 i prisloft 2013 | C22: 0 | D22: kr. | E22: =-C22 -> 0 | F22: kr.
B23: Indtægter fra primære aktiviteter mv.
B24: Indtægter fra kubikmetertakster, faste takster, særbidrag, målergebyrer samt andre takster og gebyrer | D24: kr.
B25: Andre indtægter i prisloftåret, som selskabet har opnået i forbindelse med eller som følge af selskabets primære aktiviteter | D25: kr.
B26: Indtægter fra primære aktiviteter mv. i alt | C26: =SUM(C24:C25) -> 0 | D26: kr. | E26: =-C26 -> 0 | F26: kr.
B27: Tillæg/fradrag i prisloftet for 2015 i alt | E27: -3059609.5 | F27: kr.
B31: Oversigt over ekstraordinære effektiviseringsgevinster
C33: 2012 | E33: 2013 | G33: 2014 | I33: 2015 | K33: 2016
B34: Indhentet ekstraordinær effektiviseringsgevinst | C34: 1892947.5 | D34: kr. | E34: 1759298 | F34: kr. | H34: kr. | J34: kr. | L34: kr.
B35: Gevinst anvendt til investeringer | C35: 0 | D35: kr. | E35: 0 | F35: kr. | H35: kr. | J35: kr. | L35: kr.
B36: Gevinst anvendt til takstnedsættelse | C36: 0 | D36: kr. | E36: 0 | F36: kr. | H36: kr. | J36: kr. | L36: kr.
B37: Korrektion for effektiviseringsgevinst der ikke er anvendt inden 4 år | C37: 0 | D37: kr. | E37: 0 | F37: kr. | H37: kr. | J37: kr. | K37: =IF(C38>SUM(E35:I36),C38-SUM(E35:I36),0)*-1 -> -1892947.5 | L37: kr.
B38: Resterende gevinst | C38: =C34-C35-C36 -> 1892947.5 | D38: kr. | E38: =C38+E34-E35-E36 -> 3652245.5 | F38: kr. | G38: =E38+G34-G35-G36 -> 3652245.5 | H38: kr. | I38: =G38+I34-I35-I36 -> 3652245.5 | J38: kr. | K38: =I38+K34-K35-K36+K37 -> 1759298 | L38: kr.
